Cogmind - Beta 16 @@@ ROGUE MODE // 2025.10.28 @ 18:29:53 Player: Shrewd Result: Destroyed by 8U-BGU(R) with Subdweller Beam Cannon Performance ------------- Evolutions (0) 0 Regions Visited (3) 600 Robots Destroyed (21) 105 Value Destroyed (551) 551 Prototype IDs (0) 0 Alien Tech Used (0) 0 Bonus (0) 0 TOTAL SCORE: 1256 Bonus ------- None Cogmind --------- Core Integrity 0/250 Matter 205/300 Energy 194/200 System Corruption 0% Temperature Cool (9) Movement Treading (245) Ox1 Location -10/Subcaves Parts ------- > --- POWER (1) -------- Subdweller Power Source > --- PROPULSION (2) --- Light Treads Armored Treads > --- UTILITY (2) ------ Huge Storage Unit Advanced Weight Redist. System > --- WEAPON (2) ------- Particle Gun Heavy Mace > --- INVENTORY (25) --- Ion Engine Subdweller Power Source Improved Heat Sink Large Storage Unit High-capacity Battery (250) Subdweller Optics Improved Terrain Scanner Transport Network Coupler Particle Charger Scrap Shield Beam Cannon Powered Cannon Light Assault Rifle Mining Laser Scrap Shield Fragment (49) Scrap Shield Fragment (49) Scrap Shield Fragment (48) Scrap Shield Fragment (48) Scrap Shield Fragment (45) Scrap Shield Fragment (38) Scrap Shield Fragment (25) Peak State ------------ > --- POWER ------------ Subdweller Power Source > --- PROPULSION ------- Light Treads Armored Treads > --- UTILITY ---------- Huge Storage Unit Advanced Weight Redist. System > --- WEAPON ----------- Particle Gun Bore Cannon > --- INVENTORY -------- Ion Engine Subdweller Power Source Improved Heat Sink Large Storage Unit High-capacity Battery Subdweller Optics Improved Terrain Scanner Transport Network Coupler Particle Charger Scrap Shield Beam Cannon Powered Cannon Light Assault Rifle Mining Laser Heavy Mace Scrap Shield Fragment Scrap Shield Fragment Scrap Shield Fragment Scrap Shield Fragment Scrap Shield Fragment Scrap Shield Fragment Scrap Shield Fragment [Rating: 22] Favorites ----------- Power Light Nuclear Core Engine Ion Engine Power Core Light Nuclear Core Propulsion Light Treads Treads Light Treads Leg Aluminum Leg Wheel Compact Wheel Utility Improved Terrain Scanner Device Improved Terrain Scanner Storage Large Storage Unit Weapon Medium Laser Energy Gun Medium Laser Energy Cannon Beam Cannon Ballistic Cannon Bore Cannon Impact Weapon Heavy Mace Build | -11 -10 -10 -10 ------- Run | Yrd Mat Min Sub Slots Evolved . | . . . . Power . | . . . . Propulsion . | . . . . Utility . | . . . . Weapon . | . . . . Parts Attached 17 | 2 3 6 6 Power 2 | . . 1 1 Engine 1 | . . . 1 Core 1 | . . 1 . Reactor . | . . . . Propulsion 4 | . . 3 1 Treads 3 | . . 3 . Leg . | . . . . Wheel 1 | . . . 1 Hover . | . . . . Flight . | . . . . Utility 5 | 1 2 1 1 Device 2 | 1 . . 1 Storage 3 | . 2 1 . Processor . | . . . . Hackware . | . . . . Protection . | . . . . Artifact . | . . . . Weapon 6 | 1 1 1 3 Energy Gun 3 | 1 1 . 1 Energy Cannon 1 | . . 1 . Ballistic Gun . | . . . . Ballistic Cannon 1 | . . . 1 Launcher . | . . . . Special Weapon . | . . . . Impact Weapon 1 | . . . 1 Slashing Weapon . | . . . . Piercing Weapon . | . . . . Special Melee Weapon . | . . . . Unidentified Prototypes . | . . . . Parts Lost 5 | . 1 . 4 Power 1 | . . . 1 Propulsion 1 | . . . 1 Utility . | . . . . Weapon 3 | . 1 . 2 Highest Loss Streak 2 | . 1 . 2 To Critical Strikes . | . . . . Average Backups 12 | 6 4 14 14 Power 1 | 1 1 1 1 Propulsion 1 | 4 1 1 . Utility 6 | . 1 7 7 Weapon 3 | 1 1 4 4 Tool/Special . | . . . . Unused Backups 28 | . 6 7 15 Power 4 | . 1 1 2 Propulsion 2 | . 2 . . Utility 14 | . 2 5 7 Weapon 8 | . 1 1 6 Tool/Special . | . . . . Average Slot Usage (%) 99 | . 99 99 97 Engine 6 | . 14 3 9 Core 6 | . . 10 2 Treads 20 | . . 26 18 Leg 5 | . 28 1 . Wheel 2 | . . . 9 Device 14 | . 14 14 14 Storage 14 | . 14 14 14 Energy Gun 19 | . 27 22 6 Energy Cannon 6 | . . 5 12 Impact Weapon 1 | . . . 7 Peak Build Rating 22 | 9 10 15 22 Average Rating 12 | 7 9 11 18 On Entrance 10 | 6 9 10 15 Avg Prop Armor Cover (%) 18 | . . . 18 Naked Turns . | . . . . Heaviest Build 97 | 15 20 31 97 Greatest Support 49 | 20 20 40 49 Greatest Overweight (x) 5 | . . . 5 Average Overweight (x) . | . . . 3 Largest Inventory Capacity 25 | 8 15 25 25 Average Capacity 16 | 8 9 14 23 Most Carried 25 | 6 10 15 25 Average Carried 14 | 5 4 14 21 Final Capacity 25 | 8 10 15 25 Final Carried 23 | 3 10 15 23 Class Distribution -------------------- 61% | Mutant 38% | Scavenger-Mutant Dominant Class ---------------- Mutant | -10/Materials Scavenger-Mutant | -10/Mines Mutant | -10/Subcaves Resources | -11 -10 -10 -10 ----------- Run | Yrd Mat Min Sub Matter Collected 410 | 210 60 80 60 Remotely . | . . . . Salvage Created 756 | 24 184 328 220 Parts 43 | 2 11 18 12 Haulers Intercepted 2 | . 2 . . Recyclers Shooed . | . . . . Parts Field Recycled . | . . . . Retrieved Matter . | . . . . Parts Self-Destructed 8 | . . . 8 Prevented . | . . . . Parts Restored . | . . . . Kills | -11 -10 -10 -10 ------- Run | Yrd Mat Min Sub Combat Hostiles Destroyed 18 | . 4 9 5 Melee 1 | . . . 1 Guns 10 | . 3 7 . Cannons 6 | . . 2 4 Classes Destroyed 6 | 1 3 . 2 Tunneler 1 | 1 . . . Hauler 2 | . 2 . . Swarmer 6 | . 3 3 . Grunt 9 | . 1 6 2 Sentry 1 | . . . 1 Subdweller 2 | . . . 2 Best Kill Streak 5 | 1 5 3 3 Combat Bots Only 4 | . 4 3 3 Max Kills in Single Turn 1 | 1 1 1 1 Gunslinging . | . . . . Exploded . | . . . . Melee 1 | . . . 1 Uniques/NPCs Destroyed . | . . . . Combat | -11 -10 -10 -10 -------- Run | Yrd Mat Min Sub Hostile Shots Fired 102 | . 24 33 45 Missed 22 | . 4 8 10 Hits 80 | . 20 25 35 Projectile 80 | . 20 25 35 Critical Strikes 1 | . . 1 . Damage Taken 1250 | . 206 306 738 Core 260 | . 33 52 175 Absorbed by Shields . | . . . . Core Remaining (%) 100 | 100 . . . Volleys Fired 71 | 3 21 26 21 Largest 2 | 2 2 2 2 Hottest 125 | 90 100 110 125 Shots Fired 120 | 6 36 52 26 Gun 96 | 6 36 49 5 Cannon 24 | . . 3 21 Launcher . | . . . . Special . | . . . . Kinetic 10 | . . . 10 Thermal 101 | 3 30 52 16 Explosive . | . . . . Electromagnetic 9 | 3 6 . . Robot Hit Streak 9 | 3 7 9 6 Robot Miss Streak 2 | 1 2 2 2 Penetration Max 1 | . . . 1 Secondary Targets 1 | . 1 . . Max Gunslinging Chain 1 | . 1 . . Shots Hit Robots 85 | 4 22 35 24 Core Hits 34 | 1 7 18 8 Critical Kills 2 | . . . 2 Critical Parts Destroyed 1 | . . . 1 Critical Strikes 16 | . 3 3 10 Burn 7 | . 3 3 1 Destroy 8 | . . . 8 Smash 1 | . . . 1 Melee Attacks 5 | . . . 5 Impact 5 | . . . 5 Slashing . | . . . . Piercing . | . . . . Sneak Attacks . | . . . . Combat Hostiles . | . . . . Follow-up Attacks . | . . . . Damage Inflicted 1274 | 48 313 412 501 Guns 773 | 48 289 377 59 Cannons 366 | . . 35 331 Explosions 24 | . 24 . . Melee 111 | . . . 111 Ramming . | . . . . Kinetic 192 | . . . 192 Thermal 911 | 36 265 412 198 Explosive . | . . . . Electromagnetic 60 | 12 48 . . Impact 111 | . . . 111 Slashing . | . . . . Piercing . | . . . . Highest Corruption . | . . . . Average Corruption . | . . . . Corruption Purged . | . . . . Corruption Blocked . | . . . . Overload Shots . | . . . . Overflow Damage 1 | . 1 . . Projectiles . | . . . . Explosions 1 | . 1 . . Melee . | . . . . Knockbacks 1 | . . . 1 Impact 1 | . . . 1 Kinetic . | . . . . Secondary . | . . . . Self-Inflicted Damage 28 | . 28 . . Shots 1 | . 1 . . Rammed . | . . . . Targets Rammed . | . . . . Kicked . | . . . . Crushed . | . . . . Highest Temperature 324 | 90 309 324 33 Average Temperature 115 | 48 127 122 18 Received Heat Transfer 309 | . 42 150 117 Siege Activations . | . . . . Martial Activations . | . . . . Shielding Activations . | . . . . Robots Disrupted . | . . . . Combat Hostiles . | . . . . Robots Corrupted . | . . . . Combat Hostiles . | . . . . Parts Fried . | . . . . Impact Corruptions . | . . . . Robots Melted 1 | . 1 . . Combat Hostiles 1 | . 1 . . Parts Melted 2 | 1 1 . . Heat Transferred 3010 | 111 975 1406 518 Parts Sabotaged . | . . . . Parts Stolen . | . . . . Parts Stripped . | . . . . Power Chain Reactions 1 | . 1 . . Alert | -11 -10 -10 -10 ------- Run | Yrd Mat Min Sub Maximum Alert Level . | . . . . Low Security (%) 100 | 100 100 100 . Level 1 . | . . . . Level 2 . | . . . . Level 3 . | . . . . Level 4 . | . . . . Level 5 . | . . . . High Security . | . . . . Max Security . | . . . . Peak Influence 149 | 5 149 90 . Initial 46 | . . 46 . Average 26 | 2 35 23 . Influence Increases 491 | 5 176 250 60 Destroy 0b10 Robot/C 320 | . 80 180 60 Destroy 0b10 Robot/NC 15 | 5 10 . . Destroy Leader 64 | . 24 40 . Disable Machine 15 | . 15 . . Destroy Structure 2 | . 2 . . Lose Combat Pursuer 75 | . 45 30 . Influence Decreases 491 | 5 57 369 60 Entered New Map 73 | . . 73 . Time Decay 392 | 5 47 296 44 Lost Part 26 | . 10 . 16 Squads Dispatched 2 | . 1 1 . Investigation 1 | . . 1 . Extermination . | . . . . Reinforcement 1 | . 1 . . Assault . | . . . . Garrison . | . . . . Intercept . | . . . . Searches Triggered . | . . . . Construction Impeded . | . . . . Haulers Reinforced . | . . . . Active Scanning Responses . | . . . . Cargo Convoy Interrupts . | . . . . Stealth | -11 -10 -10 -10 --------- Run | Yrd Mat Min Sub Distress Signals . | . . . . Communications Jammed . | . . . . Distress Signals . | . . . . Times Spotted 30 | . 8 11 11 Peak Tracking Total 4 | . 4 2 4 Tactical Retreats 3 | . 1 2 . Traps | -11 -10 -10 -10 ------- Run | Yrd Mat Min Sub Traps Triggered . | . . . . Indirectly . | . . . . Trap Hack Attempts . | . . . . Triggered . | . . . . Disarmed . | . . . . Reprogrammed . | . . . . Reused . | . . . . Traps Extracted . | . . . . Installed . | . . . . Triggered . | . . . . Machines | -11 -10 -10 -10 ---------- Run | Yrd Mat Min Sub Machines Disabled 1 | . 1 . . Max in Single Turn 1 | . 1 . . Machines Repaired . | . . . . Machines Dismantled . | . . . . Machines Sabotaged . | . . . . Overloaded Fab Kills . | . . . . Hacking | -11 -10 -10 -10 --------- Run | Yrd Mat Min Sub Machines Accessed 1 | . . 1 . Terminals . | . . . . Fabricators . | . . . . Repair Stations . | . . . . Recycling Units . | . . . . Scanalyzers . | . . . . Garrison Access . | . . . . Total Hacks 1 | . . 1 . Successful 1 | . . 1 . Failed . | . . . . Catastrophic . | . . . . Database Lockouts . | . . . . Manual 3 | . 3 . . Terminals . | . . . . Fabricators . | . . . . Repair Stations . | . . . . Recycling Units . | . . . . Scanalyzers . | . . . . Garrison Access . | . . . . Terminal Hacks 1 | . . 1 . Open Door 1 | . . 1 . Fabricator Hacks . | . . . . Repair Station Hacks . | . . . . Recycling Unit Hacks . | . . . . Scanalyzer . | . . . . Garrison Access Hacks . | . . . . Unauthorized Hacks . | . . . . Terminals . | . . . . Fabricators . | . . . . Repair Stations . | . . . . Recycling Units . | . . . . Scanalyzers . | . . . . Garrison Access . | . . . . Data Cores Recovered . | . . . . Used . | . . . . Hacking Detections 1 | . 1 . . Full Trace Events . | . . . . Feedback Events . | . . . . Feedback Blocked . | . . . . Robot Schematics Acquired . | . . . . Robots Built . | . . . . Authchips . | . . . . Time . | . . . . Total Robot Build Rating . | . . . . Part Schematics Acquired . | . . . . Parts Built . | . . . . Authchips . | . . . . Time . | . . . . Total Part Build Rating . | . . . . Part Studies Acquired . | . . . . Parts Repaired . | . . . . Time . | . . . . Parts Recycled . | . . . . Recycled Matter . | . . . . Retrieved Matter . | . . . . Retrieved Components . | . . . . Parts Scanalyzed . | . . . . Part Schematics Acquired . | . . . . Parts Damaged . | . . . . Bothacking | -11 -10 -10 -10 ------------ Run | Yrd Mat Min Sub Used RIF Installer . | . . . . Robots Hacked . | . . . . Non-combat . | . . . . Combat . | . . . . Robot Hacks Applied . | . . . . Relay Couplers Released . | . . . . Fabnet Peak Effective % . | . . . . Robots Rewired . | . . . . Allies Hacked . | . . . . Hacks Repelled . | . . . . Allies | -11 -10 -10 -10 -------- Run | Yrd Mat Min Sub Total Allies . | . . . . Largest Group . | . . . . Highest-Rated Group . | . . . . Highest-Rated Ally . | . . . . Total Orders . | . . . . Ally Attacks . | . . . . Total Damage . | . . . . Kills . | . . . . Allies Corrupted . | . . . . Allies Melted . | . . . . Intel | -11 -10 -10 -10 ------- Run | Yrd Mat Min Sub Active Infowar (turns) 1625 | 7 298 1030 290 Terrain 1625 | 7 298 1030 290 Robot Analysis Total . | . . . . Derelict Logs Recovered 2 | . . 1 1 Drone Launches . | . . . . Drone Recoveries . | . . . . Exploration | -11 -10 -10 -10 ------------- Run | Yrd Mat Min Sub Turns Passed 1807 | 20 298 1030 459 Spaces Moved 965 | 6 172 571 216 Core . | . . . . Treads 592 | . . 537 55 Legs 212 | 6 172 34 . Wheels 161 | . . . 161 Hover . | . . . . Flight . | . . . . Fastest Speed 120 | 120 120 120 145 Average Speed 153 | 120 120 158 170 Slowest Speed 245 | 120 120 165 245 Overloaded Moves . | . . . . Propulsion Burnouts . | . . . . Robots Hopped . | . . . . Potential Cave-ins . | . . . . Cave-ins Triggered . | . . . . Exploration Rate (%) 36 | 2 29 98 16 Regions Visited 3 Branch Regions 2 Pre-discovered Areas . | . . . . Known Exits Taken . | . . . . Unknown Exits Taken 3 | 1 1 1 . Scrap Searched 3 | . . 3 . Spaces Dug . | . . . . Terrain Destroyed 5 | . 1 . 4 Melee . | . . . . Projectile 4 | . . . 4 AOE 1 | . 1 . . Terrain Rammed . | . . . . Walls Destroyed . | . . . . Machines Disabled . | . . . . Actions | -11 -10 -10 -10 --------- Run | Yrd Mat Min Sub Total 1165 | 13 227 649 276 Wait 40 | . 20 17 3 Move 962 | 5 171 570 216 Hop . | . . . . Pick Up 37 | . 7 15 15 Fast Attach 5 | 1 2 1 1 Attach 4 | . 1 . 3 Detach 2 | . 2 . . Swap 15 | 1 2 7 5 Drop 23 | 3 1 13 6 Fire 71 | 3 21 26 21 Melee 5 | . . . 5 Ram . | . . . . Kick . | . . . . Crush . | . . . . Escape Stasis . | . . . . Rewire 1 | . . . 1 Trap . | . . . . Miscellaneous . | . . . . Route ------- -11/Scrapyard -10/Materials -10/Mines (discovered 3 exits: [*Mat x2] / [*Sub]) -10/Subcaves (discovered 1 exit: Rec) History --------- Turn | Location | Event 1 | -11/Scrapyard | Discovered new exit (range 3) 21 | -11/Scrapyard | Entered Materials 285 | -10/Materials | Discovered new exit (range 11) 309 | -10/Materials | Build established: Mutant 319 | -10/Materials | Entered Mines 358 | -10/Mines | Discovered new exit (range 13) 443 | -10/Mines | Discovered new exit (range 5) 583 | -10/Mines | Learned Materials garrison access intel 859 | -10/Mines | Build established: Scavenger-Mutant 1007 | -10/Mines | Discovered new exit (range 13) 1185 | -10/Mines | Met a Derelict shopkeep closing up shop 1349 | -10/Mines | Entered Subcaves 1409 | -10/Subcaves | A Subdweller sparked back to life 1409 | -10/Subcaves | A Subdweller sparked back to life 1409 | -10/Subcaves | A Subdweller sparked back to life 1448 | -10/Subcaves | Found Prototype Energy Cannon 1503 | -10/Subcaves | Build established: Mutant 1537 | -10/Subcaves | Identified exit to Recycling 1636 | -10/Subcaves | Core integrity fell below 50% 1685 | -10/Subcaves | Ambushed by swarm of Subdwellers 1726 | -10/Subcaves | Lost 4 allies 1753 | -10/Subcaves | Core integrity fell below 20% 1808 | -10/Subcaves | Destroyed by 8U-BGU(R) with Subdweller Beam Cannon Last Messages --------------- 01723_ Aluminum Leg fries itself beyond repair. 01746_ Com. Wheel destroyed. 01750_ HV Slug penetrates AK-Z0R(R). 01750_ AK-Z0R(R) suffers critical hit (Destroy). 01750_ HV Slug penetrates 8U-BGU(R). 01750_ 8U-BGU(R) suffers critical hit (Destroy). 01752_ Destroyed Sub. Power Source. 01792_ AK-Z0R(R) suffers critical hit (Destroy). 01792_ AK-Z0R(R) destroyed. 01794_ HV Slug penetrates M7-HM1(R). 01794_ HV Slug penetrates Wall. 01796_ HV Slug penetrates M7-HM1(R). 01796_ M7-HM1(R) suffers critical hit (Destroy). 01796_ HV Slug penetrates Wall. 01798_ M7-HM1(R) suffers critical hit (Destroy). 01799_ M7-HM1(R) affixes Scrap Shield Fragment to Scrap Shield. 01800_ M7-HM1(R) suffers critical hit (Destroy). 01804_ M7-HM1(R) affixes Scrap Shield Fragment to Scrap Shield. 01804_ HV Slug penetrates Wall. 01806_ Bore Cannon destroyed. Map ----- +----------------------------------------------------+ | ?????????????????????????????????????????????????? | | ????????????????????????????????????????????????? | | ????????????????????????????????????????????????? | | ??????????????????????????????????? ?????????### | | ?????????????????????????????????? ??#??????? | | ?????????????????????????????????? ## ??????? | | ?????????????????????????????????? ???????? | | ??????????????????????????????????# ???????? | | ?????????????????????????????????## ????????# | | ????????????????????????????????## #????????# | | ????????????????????????????????? #####???## | | ?????????????????????????????#???? #?### | | ????????????????????????????# ?????# #?# | | ???????????????????????????#;#?????# ### | | ??????????????????????????## #####?# ## % | | ??????????????????????????#*% ### | | ??????????????????????????# % | | ??????????????????????????#%#### ### | | ????????????????????????##!R#??####" #### | | ????????????????????????#;R #??????# ###?#& | | ???????????????????????## #??????# #??## | | ????????????????????#### #?????# ### #??# = | | ????????????????????# #????# ##?####??# ! | | ????????????????????# ##????## ###????????#" | | ????????????????????# ##??????##???????????# | | ????????????????????# @#????????????????????## | | ????????????????????# ?????????????????## | | ????????????????????#### #???????????### | | ???????????????????????## #????????### | | ????????????????????????### ?????## | | ??????????????????????????? ????# ### | | ??????????????????????????? ## ????### ##?? | | ???????????????????????????####?? ##?????###??? | | ??????????????????????????????????####???????????? | | ?????????????????????????????????????????????????? | | ?????????????????????????????????????????????????? | | ?????????????????????????????????????????????????? | | ????????????????????????????????????????????????#? | | ?????????????????????????????????????????????????? | | ?????????????????????????????????????????????????? | | ?????????????????????????????????????????????????? | | ?????????????????????????????????????????????????? | | ?????????????????????????????????????????????????? | | ?????????????????????????????????????????????????? | | ?????????????????????????????????????????????????? | | ?????????????????????????????????????????????????? | | ?????????????????????????????????????????????????? | | ?????????????????????????????????????????????????? | | | | | +----------------------------------------------------+ Best States ------------- Heat Dissipation 25 Energy Generation 15 Energy Capacity 250 Matter Stores 300 Matter Capacity 300 Sight Range 16 Terrain Scan Range 16 Terrain Scan Density 10 Additional Mass Support 9 Evasion (%) 55 Recoil Reduction 2 Item Schematics ----------------- None Robot Schematics ------------------ None Fabricated ------------ Nothing Repaired ---------- Nothing Studied --------- None Alien Tech Used ----------------- None Achievements -------------- None Challenges ------------ None Game ------ Seed ArcRemoteChainsword Manual? 0 Play Time 00:21:20 Cumulative 19.9 hours Start 2025.10.28 @ 18:08:56 End 2025.10.28 @ 18:29:53 Sessions 1 Manual Loads 0 Difficulty Rogue Special Mode None Game No. 34 Rogue 34 Adventurer 0 Explorer 0 Win Type - Total 0 Types 0/0/0/0/0/0/0/0/0/0 Lore% 14 Gallery% 26 Achievement% 18 Wizard Run 0 Options --------- Layout 0 ASCII 0 Keyboard 1 Movement Numpad Keybinds 0 Fullscreen 1 Font 24/Smallcaps Map View 76x50 Zoom Use 0% Tactical HUD 1 Map Filters NONE Filters NONE Steam 1 RUN: 213f29c0-47d0-4e0c-97b3-9a41be52e60e